Cogmind - Beta 13 @@@ ROGUE MODE // 2024.05.05 @ 23:59:14 Player: Olafz Result: Destroyed by as-60900 with Assembled Rifle Performance ------------- Evolutions (0) 0 Regions Visited (3) 600 Robots Destroyed (19) 95 Value Destroyed (445) 445 Prototype IDs (23) 460 Alien Tech Used (0) 0 Bonus (300) 300 TOTAL SCORE: 1900 Bonus ------- Aligned with FarCom 300 Cogmind --------- Core Integrity 0/250 Matter 295/300 Energy 100/100 System Corruption 0% Temperature Cool (20) Movement Walking (120) Location -10/Exiles Parts ------- > --- POWER (1) -------- (None) > --- PROPULSION (2) --- Aluminum Leg Aluminum Leg > --- UTILITY (2) ------ Heat Sink Medium Storage Unit > --- WEAPON (2) ------- Particle Gun > --- INVENTORY (10) --- Light Ion Engine Light Ion Engine Light Ion Engine Aluminum Leg Aluminum Leg Large Battery (200) ECM Suite Particle Gun Beam Cannon Grenade Launcher Peak State ------------ > --- POWER ------------ Light Ion Engine > --- PROPULSION ------- Aluminum Leg Aluminum Leg > --- UTILITY ---------- Heat Sink Medium Storage Unit > --- WEAPON ----------- Particle Gun Field Lobotomy Kit > --- INVENTORY -------- Light Ion Engine Light Ion Engine Light Ion Engine Aluminum Leg Aluminum Leg Large Battery ECM Suite Particle Gun Beam Cannon Grenade Launcher [Rating: 18] Favorites ----------- Power Light Ion Engine Engine Light Ion Engine Propulsion Aluminum Leg Leg Aluminum Leg Utility Medium Storage Unit Device Heat Sink Storage Medium Storage Unit Weapon Particle Gun Energy Gun Particle Gun Energy Cannon Beam Cannon Ballistic Gun Assault Rifle Special Weapon Field Lobotomy Kit Build | -11 -10 -10 -10 ------- Run | Yrd Mat Min Exi Slots Evolved . | . . . . Power . | . . . . Propulsion . | . . . . Utility . | . . . . Weapon . | . . . . Parts Attached 11 | . 8 2 1 Power 2 | . 2 . . Engine 2 | . 2 . . Core . | . . . . Reactor . | . . . . Propulsion 1 | . 1 . . Treads . | . . . . Leg 1 | . 1 . . Wheel . | . . . . Hover . | . . . . Flight . | . . . . Utility 3 | . 2 1 . Device 2 | . 1 1 . Storage 1 | . 1 . . Processor . | . . . . Hackware . | . . . . Protection . | . . . . Artifact . | . . . . Weapon 5 | . 3 1 1 Energy Gun 3 | . 2 1 . Energy Cannon 1 | . 1 . . Ballistic Gun . | . . . . Ballistic Cannon . | . . . . Launcher . | . . . . Special Weapon 1 | . . . 1 Impact Weapon . | . . . . Slashing Weapon . | . . . . Piercing Weapon . | . . . . Special Melee Weapon . | . . . . Unidentified Prototypes . | . . . . Parts Lost 4 | . 2 1 1 Power 2 | . 1 . 1 Propulsion . | . . . . Utility 1 | . . 1 . Weapon 1 | . 1 . . Highest Loss Streak 2 | . 2 1 1 To Critical Strikes . | . . . . Average Slot Usage (%) 93 | . 83 100 99 Engine 13 | . 11 14 13 Leg 28 | . 28 28 28 Device 9 | . 2 14 14 Storage 14 | . 14 14 14 Energy Gun 14 | . 14 14 14 Energy Cannon 10 | . 7 14 9 Ballistic Gun 1 | . 4 . . Special Weapon 1 | . . . 4 Naked Turns . | . . . . Heaviest Build 25 | 12 20 20 25 Greatest Support 20 | 20 20 20 20 Greatest Overweight (x) 1 | . . . 1 Average Overweight (x) . | . . . . Largest Inventory Capacity 10 | . 10 10 10 Average Capacity 9 | . 9 10 10 Most Carried 10 | . 10 10 10 Average Carried 9 | . 7 10 9 Final Capacity 10 | 8 10 10 10 Final Carried 10 | 6 10 10 10 Class Distribution -------------------- 100% | Mutant Dominant Class ---------------- Mutant | -10/Materials Mutant | -10/Mines Mutant | -10/Exiles Resources | -11 -10 -10 -10 ----------- Run | Yrd Mat Min Exi Matter Collected 348 | 200 128 20 . Remotely . | . . . . Salvage Created 576 | . 479 97 . Parts 35 | . 31 4 . Haulers Intercepted 1 | . 1 . . Recyclers Shooed . | . . . . Parts Field Recycled . | . . . . Retrieved Matter . | . . . . Parts Self-Destructed . | . . . . Prevented . | . . . . Kills | -11 -10 -10 -10 ------- Run | Yrd Mat Min Exi Combat Hostiles Destroyed 16 | . 14 2 . Guns 7 | . 7 . . Cannons 8 | . 6 2 . AOE 1 | . 1 . . Classes Destroyed 5 | . 4 1 . Worker 1 | . . 1 . Hauler 1 | . 1 . . Watcher 1 | . 1 . . Swarmer 6 | . 6 . . Grunt 10 | . 8 2 . Best Kill Streak 5 | . 5 2 . Combat Bots Only 5 | . 5 2 . Max Kills in Single Turn 1 | . 1 1 . Gunslinging . | . . . . Exploded 1 | . 1 . . Melee . | . . . . Uniques/NPCs Destroyed . | . . . . Combat | -11 -10 -10 -10 -------- Run | Yrd Mat Min Exi Hostile Shots Fired 114 | . 69 13 32 Missed 32 | . 22 2 8 Damage Taken 1063 | . 533 155 375 Core 251 | . 112 15 124 Absorbed by Shields . | . . . . Core Remaining (%) 100 | 100 . . . Volleys Fired 54 | . 42 7 5 Largest 2 | . 2 2 1 Hottest 125 | . 125 125 . Shots Fired 97 | . 78 14 5 Gun 75 | . 68 7 . Cannon 17 | . 10 7 . Launcher . | . . . . Special 5 | . . . 5 Kinetic 19 | . 19 . . Thermal 66 | . 52 14 . Explosive . | . . . . Electromagnetic 7 | . 7 . . Robot Hit Streak 7 | . 7 3 4 Robot Miss Streak 5 | . 5 4 1 Penetration Max . | . . . . Secondary Targets . | . . . . Shots Hit Robots 54 | . 43 7 4 Core Hits 28 | . 24 4 . Critical Kills . | . . . . Critical Parts Destroyed . | . . . . Critical Strikes 3 | . 3 . . Burn 3 | . 3 . . Melee Attacks . | . . . . Impact . | . . . . Slashing . | . . . . Piercing . | . . . . Sneak Attacks . | . . . . Combat Hostiles . | . . . . Follow-up Attacks . | . . . . Damage Inflicted 819 | . 688 131 . Guns 543 | . 494 49 . Cannons 211 | . 139 72 . Explosions 52 | . 52 . . Melee . | . . . . Ramming 13 | . 3 10 . Kinetic 144 | . 144 . . Thermal 605 | . 484 121 . Explosive . | . . . . Electromagnetic 57 | . 57 . . Impact . | . . . . Slashing . | . . . . Piercing . | . . . . Highest Corruption . | . . . . Average Corruption . | . . . . Corruption Purged . | . . . . Corruption Blocked . | . . . . Overload Shots . | . . . . Overflow Damage 2 | . 2 . . Projectiles 2 | . 2 . . Explosions . | . . . . Melee . | . . . . Knockbacks 1 | . 1 . . Impact 1 | . 1 . . Kinetic . | . . . . Secondary . | . . . . Self-Inflicted Damage . | . . . . Shots . | . . . . Rammed . | . . . . Targets Rammed 2 | . 1 1 . Kicked 2 | . 1 1 . Crushed . | . . . . Highest Temperature 274 | . 224 274 . Average Temperature 83 | . 69 148 . Received Heat Transfer 367 | . 234 93 40 Effects 1 | . 1 . . Energy Bleed 1 | . 1 . . Siege Activations . | . . . . Robots Corrupted . | . . . . Combat Hostiles . | . . . . Parts Fried . | . . . . Impact Corruptions . | . . . . Robots Melted . | . . . . Combat Hostiles . | . . . . Parts Melted 2 | . 2 . . Heat Transferred 1654 | . 1395 259 . Parts Sabotaged . | . . . . Parts Stolen . | . . . . Parts Stripped . | . . . . Power Chain Reactions 1 | . 1 . . Alert | -11 -10 -10 -10 ------- Run | Yrd Mat Min Exi Peak Influence 240 | . 240 111 . Initial 66 | . . 66 . Average 95 | . 126 67 . Maximum Alert Level 1 | . 1 . . Low Security (%) 86 | . 71 100 . Level 1 13 | . 28 . . Level 2 . | . . . . Level 3 . | . . . . Level 4 . | . . . . Level 5 . | . . . . High Security . | . . . . Max Security . | . . . . Squads Dispatched 4 | . 4 . . Investigation 4 | . 4 . . Extermination . | . . . . Reinforcement . | . . . . Assault . | . . . . Garrison . | . . . . Intercept . | . . . . Searches Triggered . | . . . . Construction Impeded . | . . . . Haulers Reinforced . | . . . . Active Scanning Responses . | . . . . Cargo Convoy Interrupts . | . . . . Stealth | -11 -10 -10 -10 --------- Run | Yrd Mat Min Exi Distress Signals . | . . . . Communications Jammed . | . . . . Distress Signals . | . . . . Times Spotted 28 | . 20 2 6 Peak Tracking Total 9 | . 6 2 9 Tactical Retreats . | . . . . Traps | -11 -10 -10 -10 ------- Run | Yrd Mat Min Exi Traps Triggered 2 | . 2 . . Indirectly . | . . . . Trap Hack Attempts . | . . . . Triggered . | . . . . Disarmed . | . . . . Reprogrammed . | . . . . Reused . | . . . . Traps Extracted . | . . . . Installed . | . . . . Triggered . | . . . . Machines | -11 -10 -10 -10 ---------- Run | Yrd Mat Min Exi Machines Disabled . | . . . . Max in Single Turn . | . . . . Machines Repaired . | . . . . Machines Dismantled . | . . . . Machines Sabotaged . | . . . . Overloaded Fab Kills . | . . . . Hacking | -11 -10 -10 -10 --------- Run | Yrd Mat Min Exi Machines Accessed 3 | . 2 . 1 Terminals 2 | . 2 . . Fabricators . | . . . . Repair Stations . | . . . . Recycling Units . | . . . . Scanalyzers . | . . . . Garrison Access . | . . . . Total Hacks 5 | . 4 . 1 Successful 2 | . 1 . 1 Failed 3 | . 3 . . Catastrophic 3 | . 3 . . Database Lockouts . | . . . . Manual 5 | . 4 . 1 Terminals 4 | . 4 . . Fabricators . | . . . . Repair Stations . | . . . . Recycling Units . | . . . . Scanalyzers . | . . . . Garrison Access . | . . . . Terminal Hacks 2 | . 1 . 1 Recall Investigation 1 | . 1 . . Derelict Proto ID Bank 1 | . . . 1 Fabricator Hacks . | . . . . Repair Station Hacks . | . . . . Recycling Unit Hacks . | . . . . Scanalyzer . | . . . . Garrison Access Hacks . | . . . . Unauthorized Hacks . | . . . . Terminals . | . . . . Fabricators . | . . . . Repair Stations . | . . . . Recycling Units . | . . . . Scanalyzers . | . . . . Garrison Access . | . . . . Data Cores Recovered . | . . . . Used . | . . . . Hacking Detections 2 | . 2 . . Full Trace Events 2 | . 2 . . Feedback Events . | . . . . Feedback Blocked . | . . . . Robot Schematics Acquired . | . . . . Robots Built . | . . . . Authchips . | . . . . Time . | . . . . Total Robot Build Rating . | . . . . Part Schematics Acquired . | . . . . Parts Built . | . . . . Authchips . | . . . . Time . | . . . . Total Part Build Rating . | . . . . Parts Repaired . | . . . . Time . | . . . . Parts Recycled . | . . . . Recycled Matter . | . . . . Retrieved Matter . | . . . . Retrieved Components . | . . . . Parts Scanalyzed . | . . . . Part Schematics Acquired . | . . . . Parts Damaged . | . . . . Bothacking | -11 -10 -10 -10 ------------ Run | Yrd Mat Min Exi Used RIF Installer . | . . . . Robots Hacked . | . . . . Non-combat . | . . . . Combat . | . . . . Robot Hacks Applied . | . . . . Relay Couplers Released . | . . . . Fabnet Peak Effective % . | . . . . Robots Rewired . | . . . . Allies Hacked . | . . . . Hacks Repelled . | . . . . Allies | -11 -10 -10 -10 -------- Run | Yrd Mat Min Exi Total Allies 2 | . . 2 . Largest Group 2 | . . 2 2 Highest-Rated Group 45 | . . 45 45 Highest-Rated Ally 31 | . . 31 31 Total Orders . | . . . . Ally Attacks . | . . . . Total Damage . | . . . . Kills . | . . . . Allies Corrupted . | . . . . Allies Melted . | . . . . Intel | -11 -10 -10 -10 ------- Run | Yrd Mat Min Exi Robot Analysis Total . | . . . . Derelict Logs Recovered 2 | . . 2 . Drone Launches . | . . . . Drone Recoveries . | . . . . Exploration | -11 -10 -10 -10 ------------- Run | Yrd Mat Min Exi Turns Passed 1473 | . 535 622 316 Spaces Moved 1011 | 1 311 480 219 Core . | . . . . Treads . | . . . . Legs 1011 | 1 311 480 219 Wheels . | . . . . Hover . | . . . . Flight . | . . . . Fastest Speed 120 | 120 120 120 120 Average Speed 123 | 120 120 120 135 Slowest Speed 190 | 120 120 120 190 Overloaded Moves . | . . . . Propulsion Burnouts . | . . . . Robots Hopped . | . . . . Cave-ins Triggered . | . . . . Exploration Rate (%) 48 | 2 58 87 45 Regions Visited 3 Branch Regions 2 Pre-discovered Areas . | . . . . Known Exits Taken . | . . . . Unknown Exits Taken 3 | 1 1 1 . Scrap Searched 1 | . . 1 . Spaces Dug . | . . . . Terrain Destroyed 6 | . 6 . . Melee . | . . . . Projectile . | . . . . AOE 6 | . 6 . . Terrain Rammed . | . . . . Walls Destroyed . | . . . . Machines Disabled . | . . . . Actions | -11 -10 -10 -10 --------- Run | Yrd Mat Min Exi Total 1136 | . 397 512 227 Wait 38 | . 18 20 . Move 1008 | . 310 479 219 Hop . | . . . . Pick Up 10 | . 8 1 1 Fast Attach 5 | . 4 1 . Attach 1 | . 1 . . Detach 2 | . 2 . . Swap 5 | . 3 1 1 Drop 11 | . 8 2 1 Fire 54 | . 42 7 5 Melee . | . . . . Ram . | . . . . Kick 2 | . 1 1 . Crush . | . . . . Escape Stasis . | . . . . Rewire . | . . . . Trap . | . . . . Miscellaneous . | . . . . Route ------- -11/Scrapyard -10/Materials (discovered 3 exits: [*Mat] / [*Min x2]) -10/Mines (discovered 4 exits: [*Mat x2] / *Exi / [*Sub]) -10/Exiles History --------- Turn | Location | Event 1 | -11/Scrapyard | Discovered new exit (range 0) 1 | -11/Scrapyard | Entered Materials 58 | -10/Materials | Discovered new exit (range 16) 307 | -10/Materials | Build established: Mutant 351 | -10/Materials | Discovered new exit (range 16) 500 | -10/Materials | Discovered new exit (range 7) 536 | -10/Materials | Entered Mines 584 | -10/Mines | Core integrity fell below 50% 812 | -10/Mines | Discovered new exit (range 7) 852 | -10/Mines | Discovered new exit (range 15) 867 | -10/Mines | Learned Materials trap positions 1025 | -10/Mines | Discovered new exit (range 9) 1096 | -10/Mines | Learned 4 Materials zone layouts 1144 | -10/Mines | Found a hidden stash of uninstalled traps 1150 | -10/Mines | Deemed a non-threat by the Exiles lab entrance 1150 | -10/Mines | Discovered new exit (range 5) 1158 | -10/Mines | Entered Exiles 1158 | -10/Exiles | Accompanied by 2 allies 1188 | -10/Exiles | Led the pair of lost Derelicts to a safe place 1191 | -10/Exiles | Met 8R-AWN 1205 | -10/Exiles | Met EX-HEX 1240 | -10/Exiles | Met EX-BIN 1254 | -10/Exiles | Aligned with FarCom system 1256 | -10/Exiles | Given EX-Vault access code 1284 | -10/Exiles | Opened EX-Vault 1291 | -10/Exiles | Found Field Lobotomy Kit 1315 | -10/Exiles | Warned to stay clear of 0b10 Research branches 1460 | -10/Exiles | Attacked by the Exiles 1468 | -10/Exiles | Core integrity fell below 20% 1474 | -10/Exiles | Destroyed by as-60900 with Assembled Rifle Last Messages --------------- Machine disabled. HV Slug penetrates Wall. 8R-AWN unaffected by assimilation attempt. Penetrated by HV Slug. Lgt. Ion Engine destroyed. Penetrated by HV Slug. 8R-AWN unaffected by assimilation attempt. Penetrated by HV Slug. 8R-AWN unaffected by assimilation attempt. Penetrated by HV Slug. HV Slug penetrates as-99788. as-99788 suffers critical hit (Destroy). Penetrated by HV Slug. HV Slug penetrates as-99788. Field Lobotomy Kit expended. 8R-AWN unaffected by assimilation attempt. Penetrated by HV Slug. HV Slug penetrates as-99788. as-99788 destroyed. Penetrated by HV Slug. Map ----- +----------------------------------------------------+ | """"#????????????????????????????????????????????? | | """"#????????????????????????????????????????????? | | """"#????????????????????????????????????????????? | | """#????????????????????????????????????????????? | | """#????????????????????????????????????????????? | | """#????????????????????????????????????????????? | | """#????????????????????????????????????????????? | | """#????????????????????????????????????????????? | | """""???????????????????????????????????????????? | | """#????????????????????????????????????????????? | | """"????????????????????????????????????????????? | | #????????????????????????????????????????????? | | """"#????????????????????????????????????????????? | | #####????????????????????????????????????????????? | | ?????????????????????????????????????????????????? | | ?????????????????????????????????????????????????? | | ??????????????????????????????????????????????? ?? | | ###########???????????????????????????????????? | | #"""""""""##??????????????????????????????????? | | " """ """"##?????????????????????????????????# | | "" " #???????????????????????????????## | | " """#???????????????????????????????# | | " "#???????????#####???????????????# | | " "##?????????##" #??????????????## | | ""###???????#" g #?????????????## # | | """#??????## @ ##????????????# # | | "#????### % ###????????### #? | | ##???# a ########## #? | | ##?## #""""## #?? | | ###a * ##? | | ## * #? | | #### ## | | a ""#?#"""""#### # | | #"""##?#######??#### * | | ######??????????????##### | | a ##???????????????????????### | | " ##??????????????????????????### | | """ ""#?????????????????????????????### | | " ""#" "##??????????????????????????????#" | | " """##"""""""##???????????????????????????????### | | """???#########??????????????????????????????????? | | #????????????????????????????????????????????????? | | ?????????????????????????????????????????????????? | | ?????????????????????????????????????????????????? | | ?????????????????????????????????????????????????? | | ?????????????????????????????????????????????????? | | ?????????????????????????????????????????????????? | | ?????????????????????????????????????????????????? | | ?????????????????????????????????????????????????? | | ?????????????????????????????????????????????????? | +----------------------------------------------------+ Best States ------------- Heat Dissipation 35 Energy Generation 10 Energy Capacity 125 Matter Stores 300 Matter Capacity 300 Sight Range 16 Terrain Scan Density 10 Evasion (%) 55 Item Schematics ----------------- None Robot Schematics ------------------ None Fabricated ------------ Nothing Alien Tech Used ----------------- None Achievements -------------- None Challenges ------------ None Game ------ Seed NodeRemoteField Manual? 0 Play Time 00:13:06 Cumulative 115.3 hours Start 2024.05.05 @ 23:37:20 End 2024.05.05 @ 23:59:14 Sessions 1 Manual Loads 0 Difficulty Rogue Special Mode None Game No. 209 Rogue 207 Adventurer 2 Explorer 0 Win Type - Total 3 Types 2/0/0/1/0/0/0/0/0 Lore% 58 Gallery% 59 Achievement% 45 Wizard Run 0 Options --------- Layout 0 ASCII 0 Keyboard 1 Movement Numpad Keybinds 1 Fullscreen 2 Font 18/SmallcapsGlow Map View 76x50 Zoom Use 0% Tactical HUD 1 Map Filters NONE Filters NONE Steam 1 RUN: ca0429e0-5f54-4a12-b83f-b258bcb16cb0